[Event "13th All African Rapid-ch Women 2024"]
[Site "Accra"]
[Date "2024.03.10"]
[Round "2.6"]
[White "Shaba, Linda Dalitso"]
[Black "Yavo Tchetche, Marie"]
[Result "1/2-1/2"]
[ECO "E60"]
[WhiteElo "1836"]
[BlackElo "1659"]
[Annotator "NA"]
[PlyCount "134"]
[EventDate "2024.03.07"]
[EventType "rapid"]
[EventCountry "GHA"]
[SourceTitle "playchess.com"]
[Source "ChessBase"]
[SourceQuality "1"]
[TimeControl "900+10"]

1. d4 {[%emt 0:00:03]} Nf6 {[%emt 0:00:02]} 2. Nf3 {[%emt 0:00:04]} g6 {[%emt 0:00:01]} 3. c4 {[%emt 0:00:02]} Bg7 {[%emt 0:00:01]} 4. g3 {[%emt 0:00:03]} O-O {[%emt 0:00:02]} 5. Bg2 {[%emt 0:00:02]} d6 {[%emt 0:00:03]} 6. O-O {[%emt 0:00:04]} Nbd7 {[%emt 0:00:55]} 7. Nc3 {[%emt 0:00:36]} c6 {[%emt 0:00:45]} 8. Qc2 {[%emt 0:00:19]} Qc7 {[%emt 0:01:06]} 9. b3 {[%emt 0:00:24]} e5 {[%emt 0:00:26]} 10. Bb2 {[%emt 0:01:00]} Re8 {[%emt 0:01:27]} 11. dxe5 {[%emt 0:00:12]} Nxe5 {[%emt 0:00:09]} 12. Nxe5 {[%emt 0:00:13]} dxe5 {[%emt 0:00:08]} 13. e4 {[%emt 0:01:00]} Be6 {[%emt 0:00:15]} 14. Rad1 {[%emt 0:00:20]} Rad8 {[%emt 0:00:02]} 15. Na4 {[%emt 0:00:14]} b6 {[%emt 0:00:43]} 16. Rfe1 {[%emt 0:00:54]} h6 {[%emt 0:02:37]} 17. Rxd8 {[%emt 0:03:28]} Rxd8 {[%emt 0:00:04]} 18. Rd1 {[%emt 0:00:43]} Nh7 {[%emt 0:00:04]} 19. Nc3 {[%emt 0:00:45]} Rd7 {[%emt 0:00:58]} 20. Rxd7 {[%emt 0:00:08]} Qxd7 {[%emt 0:00:02]} 21. Ne2 {[%emt 0:00:41]} Bh3 {[%emt 0:00:18]} 22. f3 {[%emt 0:00:12]} Ng5 {[%emt 0:00:14]} 23. g4 {[%emt 0:02:06]} h5 {[%emt 0:00:17]} 24. Bxh3 {[%emt 0:00:44]} Nxh3+ {[%emt 0:00:02]} 25. Kg2 {[%emt 0:00:02]} hxg4 {[%emt 0:00:05]} 26. fxg4 {[%emt 0:00:38]} Qxg4+ {[%emt 0:00:03]} 27. Ng3 {[%emt 0:00:01]} Nf4+ {[%emt 0:00:10]} 28. Kf2 {[%emt 0:00:33]} Qh3 {[%emt 0:00:53]} 29. Kf3 {[%emt 0:01:00]} Ne6 {[%emt 0:00:49]} 30. Qd2 {[%emt 0:00:58]} Bh6 {[%emt 0:00:38]} 31. Qg2 {[%emt 0:01:19]} Qxg2+ {[%emt 0:00:50]} 32. Kxg2 {[%emt 0:00:01]} Nf4+ {[%emt 0:00:13]} 33. Kf3 {[%emt 0:00:04]} f6 {[%emt 0:00:05]} 34. Bc3 {[%emt 0:00:30]} Nd3 {[%emt 0:00:22]} 35. Ne2 {[%emt 0:00:13]} Kf7 {[%emt 0:00:37]} 36. h3 {[%emt 0:00:45]} Ke6 {[%emt 0:00:13]} 37. h4 {[%emt 0:00:16]} Nc1 {[%emt 0:00:32]} 38. Nxc1 {[%emt 0:00:04]} Bxc1 {[%emt 0:00:02]} 39. Bb4 {[%emt 0:00:28]} a6 {[%emt 0:00:35]} 40. Be1 {[%emt 0:00:16]} Bh6 {[%emt 0:00:23]} 41. Bf2 {[%emt 0:00:01]} b5 {[%emt 0:00:02]} 42. Bc5 {[%emt 0:00:07]} f5 {[%emt 0:00:12]} 43. Bb6 {[%emt 0:00:31]} g5 {[%emt 0:00:11]} 44. hxg5 {[%emt 0:00:09]} Bxg5 {[%emt 0:00:00]} 45. Bc5 {[%emt 0:00:00]} Bc1 {[%emt 0:01:03]} 46. Bf8 {[%emt 0:00:01]} Bb2 {[%emt 0:00:14]} 47. Bc5 {[%emt 0:00:07]} Bd4 {[%emt 0:00:11]} 48. Bf8 {[%emt 0:00:09]} bxc4 {[%emt 0:00:31]} 49. bxc4 {[%emt 0:00:02]} c5 {[%emt 0:00:12]} 50. Bh6 {[%emt 0:00:19]} f4 {[%emt 0:00:02]} 51. a4 {[%emt 0:00:16]} Kf7 {[%emt 0:00:39]} 52. Bg5 {[%emt 0:00:04]} Kg6 {[%emt 0:01:14]} 53. Bh4 {[%emt 0:00:04]} Kh5 {[%emt 0:00:02]} 54. Be7 {[%emt 0:00:05]} Kg6 {[%emt 0:00:25]} 55. Bh4 {[%emt 0:00:02]} Kf7 {[%emt 0:00:01]} 56. Bg5 {[%emt 0:00:01]} Ke6 {[%emt 0:00:02]} 57. Bh4 {[%emt 0:00:08]} Kd6 {[%emt 0:00:10]} 58. Be1 {[%emt 0:00:17]} Ke6 {[%emt 0:01:03]} 59. Bd2 {[%emt 0:00:07]} Kf6 {[%emt 0:00:09]} 60. Ba5 {[%emt 0:00:06]} Kg6 {[%emt 0:00:23]} 61. Bd8 {[%emt 0:00:03]} Bc3 {[%emt 0:00:36]} 62. Bb6 {[%emt 0:00:28]} Bb4 {[%emt 0:00:11]} 63. Bc7 {[%emt 0:00:04]} Kf6 {[%emt 0:00:01]} 64. Bd8+ {[%emt 0:00:01]} Ke6 {[%emt 0:00:02]} 65. Kg4 {[%emt 0:00:24]} Bd2 {[%emt 0:00:12]} 66. Bb6 {[%emt 0:00:12]} Be3 {[%emt 0:00:02]} 67. Ba5 {[%emt 0:00:08]} Bd4 {[%emt 0:00:06]} 1/2-1/2

[Event "13th All African Rapid-ch Women 2024"]
[Site "Accra"]
[Date "2024.03.10"]
[Round "2.8"]
[White "Gertrude Banini"]
[Black "Ayiku, Angela Naa Amerley"]
[Result "1/2-1/2"]
[ECO "A46"]
[WhiteElo "1681"]
[BlackElo "1629"]
[Annotator "NA RC"]
[PlyCount "101"]
[EventDate "2024.03.07"]
[EventType "rapid"]
[EventCountry "GHA"]
[SourceTitle "playchess.com"]
[Source "ChessBase"]
[SourceQuality "1"]
[TimeControl "900+10"]

1. d4 {[%emt 0:00:05]} c5 {[%emt 0:00:04]} 2. c3 {[%emt 0:00:12]} Qc7 {[%emt 0:00:15]} 3. Nf3 {[%emt 0:00:20]} Nf6 {[%emt 0:00:03]} 4. Bg5 {[%emt 0:00:26]} g6 {[%emt 0:00:05]} 5. e3 {[%emt 0:00:03]} Bg7 {[%emt 0:15:33]} 6. Bd3 {[%emt 0:15:04]} Qa5 {[%emt 0:00:00]} 7. O-O {[%emt 0:00:00]} O-O {[%emt 0:00:00]} 8. a3 {[%emt 0:00:00]} d6 {[%emt 0:00:00]} 9. b4 {[%emt 0:00:00]} cxb4 {[%emt 0:00:00]} 10. cxb4 {[%emt 0:00:40]} Qc7 {[%emt 0:00:00]} 11. Qc1 {[%emt 0:00:00]} Qxc1 {[%emt 0:00:00]} 12. Rxc1 {[%emt 0:00:00]} Bg4 {[%emt 0:00:00]} 13. Be2 {[%emt 0:00:00]} Nc6 {[%emt 0:00:00]} 14. Nbd2 {[%emt 0:00:00]} Bxf3 {[%emt 0:00:00]} 15. Bxf3 {[%emt 0:00:00]} Nd8 {[%emt 0:00:00]} 16. Bxf6 {[%emt 0:00:00]} Bxf6 {[%emt 0:00:00]} 17. Rc2 {[%emt 0:00:00]} Ne6 {[%emt 0:00:00]} 18. Rac1 {[%emt 0:00:00]} Rab8 {[%emt 0:00:00]} 19. Bg4 {[%emt 0:00:00]} Bg7 {[%emt 0:00:00]} 20. Bxe6 {[%emt 0:00:00]} fxe6 {[%emt 0:00:00]} 21. h3 {[%emt 0:00:00]} e5 {[%emt 0:00:00]} 22. dxe5 {[%emt 0:00:00]} Bxe5 {[%emt 0:00:00]} 23. Nc4 {[%emt 0:00:00]} Bg7 {[%emt 0:00:00]} 24. Na5 {[%emt 0:00:00]} b6 {[%emt 0:00:00]} 25. Nb3 {[%emt 0:00:00]} Rb7 {[%emt 0:00:00]} 26. Rc7 {[%emt 0:00:00]} Rxc7 {[%emt 0:00:00]} 27. Rxc7 {[%emt 0:00:00]} a6 {[%emt 0:00:00]} 28. a4 {[%emt 0:00:00]} Bf6 {[%emt 0:00:00]} 29. b5 {[%emt 0:00:00]} axb5 {[%emt 0:00:00]} 30. axb5 {[%emt 0:00:00]} Kf7 {[%emt 0:00:00]} 31. Nd4 {[%emt 0:00:00]} Bxd4 {[%emt 0:00:00]} 32. exd4 {[%emt 0:00:00]} Rb8 {[%emt 0:00:00]} 33. Kf1 {[%emt 0:00:00]} Ke6 {[%emt 0:04:40]} 34. Ke2 {[%emt 0:04:00]} h6 {[%emt 0:00:00]} 35. Ke3 {[%emt 0:00:00]} Kf6 {[%emt 0:00:00]} 36. Kf4 {[%emt 0:00:00]} Ke6 {[%emt 0:00:00]} 37. Ke4 {[%emt 0:00:00]} Kf6 {[%emt 0:00:00]} 38. f4 {[%emt 0:00:00]} e6 {[%emt 0:00:00]} 39. Rc6 {[%emt 0:00:00]} d5+ {[%emt 0:00:00]} 40. Kf3 {[%emt 0:00:00]} h5 {[%emt 0:00:00]} 41. g3 {[%emt 0:00:00]} Rb7 {[%emt 0:00:00]} 42. h4 {[%emt 0:00:00]} Rb8 {[%emt 0:00:00]} 43. g4 {[%emt 0:00:00]} Rb7 {[%emt 0:00:00]} 44. Kg3 {[%emt 0:00:00]} hxg4 {[%emt 0:00:00]} 45. Kxg4 {[%emt 0:00:00]} Rb8 {[%emt 0:00:00]} 46. Kg3 {[%emt 0:00:00]} Kf5 {[%emt 0:00:00]} 47. Kf3 {[%emt 0:00:00]} Rb7 {[%emt 0:00:00]} 48. Kg3 {[%emt 0:00:00]} Rb8 {[%emt 0:00:00]} 49. Kf3 {[%emt 0:00:00]} Rb7 {[%emt 0:00:00]} 50. Kg3 {[%emt 0:00:00]} Rb8 {[%emt 0:00:00]} 51. Kf3 {[%emt 0:02:50]} 1/2-1/2

[Event "13th All African Rapid-ch Women 2024"]
[Site "Accra"]
[Date "2024.03.10"]
[Round "2.9"]
[White "Benson, Maud"]
[Black "Tsinjoviniavo, Aina Mahasambatra"]
[Result "0-1"]
[ECO "D02"]
[WhiteElo "1664"]
[BlackElo "1681"]
[Annotator "NA RC"]
[PlyCount "74"]
[EventDate "2024.03.07"]
[EventType "rapid"]
[EventCountry "GHA"]
[SourceTitle "playchess.com"]
[Source "ChessBase"]
[SourceQuality "1"]
[TimeControl "900+10"]

1. d4 {[%emt 0:00:03]} d5 {[%emt 0:00:01]} 2. Nf3 {[%emt 0:00:04]} Nf6 {[%emt 0:00:02]} 3. g3 {[%emt 0:00:01]} Bf5 {[%emt 0:00:03]} 4. Bg2 {[%emt 0:00:07]} Nbd7 {[%emt 0:00:03]} 5. O-O {[%emt 0:00:06]} e6 {[%emt 0:00:09]} 6. c4 {[%emt 0:00:02]} c5 {[%emt 0:00:25]} 7. Nc3 {[%emt 0:00:02]} Nb6 {[%emt 0:00:22]} 8. cxd5 {[%emt 0:00:34]} exd5 {[%emt 0:00:03]} 9. dxc5 {[%emt 0:00:20]} Bxc5 {[%emt 0:00:07]} 10. Nd4 {[%emt 0:00:02]} Bg6 {[%emt 0:00:23]} 11. Nb3 {[%emt 0:00:49]} Bb4 {[%emt 0:00:26]} 12. Qd4 {[%emt 0:00:19]} Bxc3 {[%emt 0:00:20]} 13. Qxc3 {[%emt 0:00:22]} O-O {[%emt 0:00:03]} 14. Bg5 {[%emt 0:00:06]} Rc8 {[%emt 0:00:11]} 15. Bxf6 {[%emt 0:01:01]} Qxf6 {[%emt 0:00:21]} 16. Qxf6 {[%emt 0:00:03]} gxf6 {[%emt 0:00:02]} 17. Nd4 {[%emt 0:00:12]} Rc4 {[%emt 0:00:40]} 18. e3 {[%emt 0:00:09]} Rfc8 {[%emt 0:00:11]} 19. Rfd1 {[%emt 0:03:54]} Be4 {[%emt 0:00:49]} 20. f3 {[%emt 0:00:03]} Bc2 {[%emt 0:00:14]} 21. Rdc1 {[%emt 0:00:10]} Kg7 {[%emt 0:00:30]} 22. Kf2 {[%emt 0:00:02]} Bg6 {[%emt 0:00:10]} 23. Rxc4 {[%emt 0:00:38]} Rxc4 {[%emt 0:00:13]} 24. Ke1 {[%emt 0:01:11]} Rc7 {[%emt 0:00:19]} 25. Bf1 {[%emt 0:03:37]} Re7 {[%emt 0:00:12]} 26. Kd2 {[%emt 0:00:17]} Nc4+ {[%emt 0:00:18]} 27. Bxc4 {[%emt 0:00:03]} dxc4 {[%emt 0:00:03]} 28. Rc1 {[%emt 0:00:16]} Rc7 {[%emt 0:00:47]} 29. b3 {[%emt 0:00:27]} Bd3 {[%emt 0:00:28]} 30. Nb5 {[%emt 0:01:10]} Rd7 {[%emt 0:00:12]} 31. Nd4 {[%emt 0:00:37]} Rc7 {[%emt 0:00:06]} 32. Rc3 {[%emt 0:01:06]} Bf1 {[%emt 0:00:52]} 33. Kc1 {[%emt 0:01:07]} Rc5 {[%emt 0:00:47]} 34. Kb2 {[%emt 0:00:19]} b5 {[%emt 0:01:39]} 35. bxc4 {[%emt 0:01:03]} Bxc4 {[%emt 0:00:44]} 36. a3 {[%emt 0:00:31]} a5 {[%emt 0:00:20]} 37. Nb3 {[%emt 0:00:16]} Rh5 {[%emt 0:00:42]} 0-1

[Event "13th All African Rapid-ch Women 2024"]
[Site "Accra"]
[Date "2024.03.10"]
[Round "3.1"]
[White "PEACE SAMSON"]
[Black "Wafa, Shahenda"]
[Result "1/2-1/2"]
[ECO "B33"]
[WhiteElo "1870"]
[BlackElo "2083"]
[Annotator "RC"]
[PlyCount "60"]
[EventDate "2024.03.07"]
[EventType "rapid"]
[EventCountry "GHA"]
[SourceTitle "playchess.com"]
[Source "ChessBase"]
[SourceQuality "1"]
[TimeControl "900+10"]

1. e4 {[%emt 0:00:04]} c5 {[%emt 0:00:02]} 2. Nf3 {[%emt 0:00:03]} Nc6 {[%emt 0:00:03]} 3. d4 {[%emt 0:00:06]} cxd4 {[%emt 0:00:02]} 4. Nxd4 {[%emt 0:00:02]} Nf6 {[%emt 0:00:07]} 5. Nc3 {[%emt 0:00:07]} e5 {[%emt 0:00:03]} 6. Nf3 {[%emt 0:00:11]} Bb4 {[%emt 0:00:10]} 7. Bd3 {[%emt 0:00:35]} d5 {[%emt 0:00:05]} 8. exd5 {[%emt 0:01:01]} Nxd5 {[%emt 0:00:04]} 9. Bd2 {[%emt 0:00:07]} Nxc3 {[%emt 0:00:05]} 10. bxc3 {[%emt 0:00:04]} Be7 {[%emt 0:00:06]} 11. Bb5 {[%emt 0:00:40]} Qd5 {[%emt 0:02:44]} 12. Qe2 {[%emt 0:05:02]} Bg4 {[%emt 0:01:51]} 13. c4 {[%emt 0:02:48]} Qe6 {[%emt 0:04:48]} 14. Bxc6+ {[%emt 0:05:39]} Qxc6 {[%emt 0:00:41]} 15. Nxe5 {[%emt 0:00:29]} Qxg2 {[%emt 0:03:39]} 16. Qxg4 {[%emt 0:00:38]} Qxh1+ {[%emt 0:00:04]} 17. Ke2 {[%emt 0:00:01]} Qxa1 {[%emt 0:01:01]} 18. Qd7+ {[%emt 0:00:18]} Kf8 {[%emt 0:00:02]} 19. Qd5 {[%emt 0:00:06]} Qxe5+ {[%emt 0:00:36]} 20. Qxe5 {[%emt 0:00:01]} Re8 {[%emt 0:00:18]} 21. Kf1 {[%emt 0:00:10]} h5 {[%emt 0:00:32]} 22. Qc7 {[%emt 0:00:08]} b6 {[%emt 0:00:52]} 23. Qxa7 {[%emt 0:00:10]} Bc5 {[%emt 0:00:03]} 24. Qc7 {[%emt 0:00:11]} Kg8 {[%emt 0:00:07]} 25. a4 {[%emt 0:00:03]} Kh7 {[%emt 0:00:28]} 26. Qxf7 {[%emt 0:00:06]} Rhf8 {[%emt 0:00:19]} 27. Qxh5+ {[%emt 0:00:03]} Kg8 {[%emt 0:00:01]} 28. Qd5+ {[%emt 0:00:18]} Kh7 {[%emt 0:00:29]} 29. Qh5+ {[%emt 0:00:03]} Kg8 {[%emt 0:00:03]} 30. Qd5+ {[%emt 0:00:13]} Kh7 {[%emt 0:00:08]} 1/2-1/2

[Event "13th All African Rapid-ch Women 2024"]
[Site "Accra"]
[Date "2024.03.10"]
[Round "3.2"]
[White "Nassr, Lina"]
[Black "Nakabo, Peninah"]
[Result "1/2-1/2"]
[ECO "A46"]
[WhiteElo "2080"]
[BlackElo "1836"]
[Annotator "RC"]
[PlyCount "116"]
[EventDate "2024.03.07"]
[EventType "rapid"]
[EventCountry "GHA"]
[SourceTitle "playchess.com"]
[Source "ChessBase"]
[SourceQuality "1"]
[TimeControl "900+10"]

1. d4 {[%emt 0:00:02]} e6 {[%emt 0:00:03]} 2. Nf3 {[%emt 0:00:04]} c5 {[%emt 0:00:06]} 3. e3 {[%emt 0:00:02]} cxd4 {[%emt 0:00:08]} 4. exd4 {[%emt 0:00:02]} Nf6 {[%emt 0:00:13]} 5. Bd3 {[%emt 0:00:12]} d5 {[%emt 0:00:16]} 6. O-O {[%emt 0:00:10]} Bd6 {[%emt 0:00:11]} 7. c3 {[%emt 0:00:28]} O-O {[%emt 0:00:07]} 8. Re1 {[%emt 0:00:20]} Nbd7 {[%emt 0:00:23]} 9. Ne5 {[%emt 0:01:02]} a6 {[%emt 0:00:29]} 10. Nd2 {[%emt 0:00:37]} b5 {[%emt 0:00:09]} 11. a3 {[%emt 0:00:50]} Qb6 {[%emt 0:00:19]} 12. Ndf3 {[%emt 0:00:45]} a5 {[%emt 0:00:11]} 13. Qe2 {[%emt 0:01:36]} Rb8 {[%emt 0:01:05]} 14. Ng5 {[%emt 0:01:49]} h6 {[%emt 0:01:08]} 15. Nh3 {[%emt 0:02:21]} b4 {[%emt 0:00:21]} 16. axb4 {[%emt 0:00:21]} axb4 {[%emt 0:00:03]} 17. Nf4 {[%emt 0:00:40]} bxc3 {[%emt 0:00:13]} 18. bxc3 {[%emt 0:00:01]} Qc7 {[%emt 0:00:50]} 19. c4 {[%emt 0:01:40]} dxc4 {[%emt 0:00:18]} 20. Bxc4 {[%emt 0:00:14]} Nb6 {[%emt 0:00:59]} 21. Ba2 {[%emt 0:00:16]} Na4 {[%emt 0:02:53]} 22. Qd3 {[%emt 0:02:39]} Qc3 {[%emt 0:00:23]} 23. Qxc3 {[%emt 0:00:46]} Nxc3 {[%emt 0:00:03]} 24. Bc4 {[%emt 0:00:09]} Ncd5 {[%emt 0:01:51]} 25. Nfd3 {[%emt 0:00:16]} Nb6 {[%emt 0:00:15]} 26. Ba2 {[%emt 0:00:11]} Nfd5 {[%emt 0:00:03]} 27. Bd2 {[%emt 0:00:13]} Ra8 {[%emt 0:01:18]} 28. Nc5 {[%emt 0:00:14]} Bxc5 {[%emt 0:00:14]} 29. dxc5 {[%emt 0:00:01]} Nd7 {[%emt 0:00:17]} 30. Nf3 {[%emt 0:01:15]} Nxc5 {[%emt 0:00:13]} 31. Bxd5 {[%emt 0:00:18]} Rxa1 {[%emt 0:00:06]} 32. Rxa1 {[%emt 0:00:02]} exd5 {[%emt 0:00:03]} 33. Bb4 {[%emt 0:00:16]} Na6 {[%emt 0:03:06]} 34. Bxf8 {[%emt 0:00:09]} Kxf8 {[%emt 0:00:01]} 35. Nd4 {[%emt 0:00:18]} Ke7 {[%emt 0:00:24]} 36. Ra5 {[%emt 0:00:14]} Kd6 {[%emt 0:00:21]} 37. Kf1 {[%emt 0:00:16]} Nc5 {[%emt 0:00:08]} 38. Nb5+ {[%emt 0:00:08]} Kc6 {[%emt 0:00:04]} 39. Nd4+ {[%emt 0:00:14]} Kd6 {[%emt 0:00:03]} 40. Ra7 {[%emt 0:00:04]} Be6 {[%emt 0:00:06]} 41. Ke2 {[%emt 0:00:12]} Ke5 {[%emt 0:00:11]} 42. Rc7 {[%emt 0:00:15]} Kxd4 {[%emt 0:00:05]} 43. f4 {[%emt 0:00:13]} g6 {[%emt 0:00:20]} 44. h3 {[%emt 0:00:09]} h5 {[%emt 0:00:02]} 45. Kf3 {[%emt 0:00:08]} Kc4 {[%emt 0:00:14]} 46. g4 {[%emt 0:00:11]} hxg4+ {[%emt 0:00:04]} 47. hxg4 {[%emt 0:00:01]} d4 {[%emt 0:00:01]} 48. f5 {[%emt 0:00:21]} gxf5 {[%emt 0:00:19]} 49. gxf5 {[%emt 0:00:02]} Bd5+ {[%emt 0:00:01]} 50. Ke2 {[%emt 0:00:09]} Be4 {[%emt 0:00:18]} 51. Rxf7 {[%emt 0:00:20]} d3+ {[%emt 0:00:06]} 52. Kd1 {[%emt 0:00:17]} Bf3+ {[%emt 0:00:11]} 53. Kd2 {[%emt 0:00:08]} Nb3+ {[%emt 0:00:29]} 54. Ke3 {[%emt 0:00:02]} d2 {[%emt 0:00:37]} 55. Rc7+ {[%emt 0:00:13]} Kd5 {[%emt 0:00:51]} 56. Rd7+ {[%emt 0:00:05]} Ke5 {[%emt 0:00:03]} 57. Rxd2 {[%emt 0:00:23]} Nxd2 {[%emt 0:00:02]} 58. Kxd2 {[%emt 0:00:02]} Kxf5 {[%emt 0:00:03]} 1/2-1/2

[Event "13th All African Rapid-ch Women 2024"]
[Site "Accra"]
[Date "2024.03.10"]
[Round "3.4"]
[White "Vilhete, Vania Fausto Da T."]
[Black "Mongeli, Sasha"]
[Result "0-1"]
[ECO "D40"]
[WhiteElo "1829"]
[BlackElo "1858"]
[Annotator "NA RC"]
[PlyCount "137"]
[EventDate "2024.03.07"]
[EventType "rapid"]
[EventCountry "GHA"]
[SourceTitle "playchess.com"]
[Source "ChessBase"]
[SourceQuality "1"]
[TimeControl "900+10"]

1. d4 {[%emt 0:00:01]} Nf6 {[%emt 0:00:06]} 2. c4 {[%emt 0:00:02]} c5 {[%emt 0:00:05]} 3. e3 {[%emt 0:00:08]} e6 {[%emt 0:00:15]} 4. Nf3 {[%emt 0:00:08]} d5 {[%emt 0:00:47]} 5. Nc3 {[%emt 0:00:13]} Nc6 {[%emt 0:00:25]} 6. Bd3 {[%emt 0:00:23]} cxd4 {[%emt 0:00:17]} 7. exd4 {[%emt 0:00:06]} dxc4 {[%emt 0:00:09]} 8. Bxc4 {[%emt 0:00:02]} Be7 {[%emt 0:00:07]} 9. O-O {[%emt 0:00:04]} O-O {[%emt 0:00:02]} 10. Re1 {[%emt 0:00:07]} a6 {[%emt 0:00:16]} 11. a3 {[%emt 0:00:29]} b5 {[%emt 0:00:24]} 12. Ba2 {[%emt 0:00:02]} Bb7 {[%emt 0:00:04]} 13. Bg5 {[%emt 0:01:29]} Nd5 {[%emt 0:01:09] D40: Queen's Gambit Declined: Semi-Tarrasch with 5 e3.} 14. Bxe7 {[%emt 0:00:33]} Ncxe7 {[%emt 0:00:20]} 15. Ne4 {[%emt 0:00:34]} Nf4 {[%emt 0:01:25]} 16. Nc5 {[%emt 0:00:34]} Bd5 {[%emt 0:00:43]} 17. Bxd5 {[%emt 0:02:01]} Nexd5 {[%emt 0:00:36]} 18. g3 {[%emt 0:01:13]} Ng6 {[%emt 0:01:09]} 19. Qe2 {[%emt 0:00:43]} Qe7 {[%emt 0:01:06]} 20. Rad1 {[%emt 0:00:21]} Rfd8 {[%emt 0:00:18]} 21. Qe4 {[%emt 0:00:40]} a5 {[%emt 0:01:40]} 22. Ne5 {[%emt 0:00:56]} Nxe5 {[%emt 0:00:50]} 23. Qxe5 {[%emt 0:00:10]} Qf6 {[%emt 0:00:52]} 24. Qh5 {[%emt 0:02:02]} Qg6 {[%emt 0:00:41]} 25. Qf3 {[%emt 0:00:44]} b4 {[%emt 0:00:55]} 26. Nd3 {[%emt 0:01:12]} Qf6 {[%emt 0:00:50]} 27. Qxf6 {[%emt 0:00:12]} Nxf6 {[%emt 0:00:04]} 28. axb4 {[%emt 0:00:07]} Rxd4 {[%emt 0:00:22]} 29. bxa5 {[%emt 0:00:15]} Rxa5 {[%emt 0:00:14]} 30. Nf4 {[%emt 0:00:44]} Rxd1 {[%emt 0:00:41]} 31. Rxd1 {[%emt 0:00:03]} g5 {[%emt 0:00:14]} 32. Ne2 {[%emt 0:00:19]} Rb5 {[%emt 0:00:13]} 33. Rd2 {[%emt 0:00:21]} Ne4 {[%emt 0:01:31]} 34. Rc2 {[%emt 0:00:21]} Rb4 {[%emt 0:00:20]} 35. Nc1 {[%emt 0:00:17]} Kg7 {[%emt 0:00:34]} 36. f3 {[%emt 0:00:28]} Nf6 {[%emt 0:00:07]} 37. Kf2 {[%emt 0:00:05]} Nd5 {[%emt 0:00:09]} 38. Nd3 {[%emt 0:00:10]} Rb5 {[%emt 0:00:15]} 39. f4 {[%emt 0:03:21]} gxf4 {[%emt 0:00:24]} 40. Nxf4 {[%emt 0:00:00]} Nxf4 {[%emt 0:00:19]} 41. gxf4 {[%emt 0:00:00]} Rb3 {[%emt 0:00:03]} 42. Ke1 {[%emt 0:00:00]} Kf6 {[%emt 0:00:24]} 43. Rf2 {[%emt 0:00:00]} Kf5 {[%emt 0:00:06]} 44. Kd1 {[%emt 0:00:00]} h5 {[%emt 0:00:06]} 45. Kc2 {[%emt 0:00:00]} Rb4 {[%emt 0:00:03]} 46. Kc3 {[%emt 0:00:00]} Rxf4 {[%emt 0:00:25]} 47. Rxf4+ {[%emt 0:00:00]} Kxf4 {[%emt 0:00:01]} 48. Kc4 {[%emt 0:00:04]} e5 {[%emt 0:00:05]} 49. b4 {[%emt 0:00:01]} e4 {[%emt 0:00:01]} 50. b5 {[%emt 0:00:01]} e3 {[%emt 0:00:01]} 51. b6 {[%emt 0:00:01]} e2 {[%emt 0:00:02]} 52. b7 {[%emt 0:00:01]} e1=Q {[%emt 0:00:03]} 53. b8=Q+ {[%emt 0:00:03]} Qe5 {[%emt 0:00:16]} 54. Qg8 {[%emt 0:00:55]} Qe6+ {[%emt 0:00:23]} 55. Kc5 {[%emt 0:00:17]} Qf5+ {[%emt 0:00:20]} 56. Kc4 {[%emt 0:00:13]} Qe4+ {[%emt 0:00:29]} 57. Kc5 {[%emt 0:00:08]} Qc2+ {[%emt 0:00:04]} 58. Kd5 {[%emt 0:00:09]} Qd3+ {[%emt 0:00:11]} 59. Kc5 {[%emt 0:00:07]} Qc3+ {[%emt 0:00:09]} 60. Kd5 {[%emt 0:00:08]} Qb3+ {[%emt 0:00:07]} 61. Kc5 {[%emt 0:00:05]} Qc2+ {[%emt 0:00:08]} 62. Kd5 $19 {[%emt 0:00:05]} Qe4+ {[%emt 0:00:10]} 63. Kc5 {[%emt 0:00:04]} Qg6 {[%emt 0:00:08]} 64. Qb8+ {[%emt 0:00:28]} Kg5 {[%emt 0:00:23]} 65. Qg3+ {[%emt 0:00:38]} Kh6 {[%emt 0:00:06]} 66. Qf2 {[%emt 0:00:27]} Qg5+ {[%emt 0:00:16]} 67. Kd4 {[%emt 0:00:23]} f5 {[%emt 0:00:08]} 68. Kd3 {[%emt 0:00:19]} f4 {[%emt 0:00:20]} 69. Ke4 {[%emt 0:00:00]} 0-1